[Event "Eurasia Open Cup 2019"]
[Site "Ekaterinburg"]
[Date "2019.08.01"]
[Round "2.10"]
[White "Odegov, Artem"]
[Black "Moiseenko, Vadim"]
[Result "0-1"]
[ECO "D31"]
[WhiteElo "2261"]
[BlackElo "2523"]
[Annotator "ChessBase"]
[PlyCount "74"]
[EventDate "2019.07.31"]
[EventType "swiss"]
[EventCountry "RUS"]
[SourceTitle "playchess.com"]
[Source "ChessBase"]
[SourceQuality "1"]
[TimeControl "5400+30"]

1. d4 {[%emt 0:00:00]} d5 {[%emt 0:08:01]} 2. c4 {[%emt 0:00:00]} e6 {[%emt 0:00:02]} 3. Nc3 {[%emt 0:00:00]} c6 {[%emt 0:01:22]} 4. e3 {[%emt 0:04:42]} Bd6 {[%emt 0:01:11]} 5. b3 {[%emt 0:03:52]} f5 {[%emt 0:01:11]} 6. Bd3 {[%emt 0:00:47]} Nh6 {[%emt 0:00:20]} 7. Nf3 {[%emt 0:01:35]} Nd7 {[%emt 0:00:33]} 8. h3 {[%emt 0:13:27]} O-O {[%emt 0:01:01]} 9. Qc2 {[%emt 0:02:20]} Qe7 {[%emt 0:01:08]} 10. Bb2 {[%emt 0:00:42]} b6 {[%emt 0:00:29]} 11. Ne2 {[%emt 0:14:02]} Bb7 {[%emt 0:00:44]} 12. Ne5 {[%emt 0:04:27]} Nf7 {[%emt 0:00:39]} 13. Nxd7 {[%emt 0:10:42]} Qxd7 {[%emt 0:00:18]} 14. O-O {[%emt 0:00:52]} Ng5 {[%emt 0:21:49]} 15. a4 {[%emt 0:05:46]} c5 {[%emt 0:00:02]} 16. cxd5 {[%emt 0:00:50]} exd5 {[%emt 0:00:30]} 17. Ng3 {[%emt 0:00:25]} Ne4 {[%emt 0:06:07]} 18. Nxe4 {[%emt 0:07:47]} fxe4 {[%emt 0:03:26]} 19. Bb5 {[%emt 0:06:36]} Qe6 {[%emt 0:03:46]} 20. dxc5 {[%emt 0:07:30]} bxc5 {[%emt 0:03:24]} 21. Be2 {[%emt 0:02:33]} Qg6 {[%emt 0:00:07]} 22. f4 {[%emt 0:00:08]} Qg3 {[%emt 0:02:42]} 23. Qc3 {[%emt 0:01:06]} d4 {[%emt 0:00:20]} 24. exd4 {[%emt 0:03:03]} e3 {[%emt 0:02:10]} 25. d5 {[%emt 0:01:25]} Bxf4 {[%emt 0:00:45]} 26. Rxf4 {[%emt 0:02:03]} Rxf4 {[%emt 0:04:02]} 27. Bg4 {[%emt 0:02:27]} Rd4 {[%emt 0:00:00]} 28. Qe1 {[%emt 0:02:33]} Qf2+ {[%emt 0:00:32]} 29. Qxf2 {[%emt 0:00:40]} exf2+ {[%emt 0:00:10]} 30. Kf1 {[%emt 0:00:11]} Ba6+ {[%emt 0:01:23]} 31. Be2 {[%emt 0:01:13]} Bxe2+ {[%emt 0:00:21]} 32. Kxe2 {[%emt 0:00:40]} Re8+ {[%emt 0:00:02]} 33. Kf1 {[%emt 0:00:18]} Rxd5 {[%emt 0:00:05]} 34. Rc1 {[%emt 0:00:30]} Re1+ {[%emt 0:00:06]} 35. Rxe1 {[%emt 0:00:07]} fxe1=N {[%emt 0:00:03]} 36. Kxe1 {[%emt 0:00:12]} Rd3 {[%emt 0:00:22]} 37. Ba3 {[%emt 0:00:34]} c4 {[%emt 0:00:19]} 0-1

[Event "Eurasia Open Cup 2019"]
[Site "Ekaterinburg"]
[Date "2019.08.01"]
[Round "2.11"]
[White "Akhtariev, Andrey"]
[Black "Vokhidov, Shamsiddin"]
[Result "0-1"]
[ECO "D02"]
[WhiteElo "2243"]
[BlackElo "2515"]
[Annotator "ChessBase"]
[PlyCount "80"]
[EventDate "2019.07.31"]
[EventType "swiss"]
[EventCountry "RUS"]
[SourceTitle "playchess.com"]
[Source "ChessBase"]
[SourceQuality "1"]
[TimeControl "5400+30"]

1. Nc3 {[%emt 0:00:00]} d5 {[%emt 0:00:00]} 2. d4 {[%emt 0:00:00]} Nf6 {[%emt 0:00:00]} 3. Bf4 {[%emt 0:00:16]} a6 {[%emt 0:00:00]} 4. e3 {[%emt 0:05:58]} e6 {[%emt 0:00:00]} 5. Nf3 {[%emt 0:00:59]} c5 {[%emt 0:03:01]} 6. Be2 {[%emt 0:03:35]} Nc6 {[%emt 0:03:59]} 7. O-O {[%emt 0:03:04]} b5 {[%emt 0:01:32]} 8. dxc5 {[%emt 0:03:14]} Bxc5 {[%emt 0:00:11]} 9. a4 {[%emt 0:06:32]} b4 {[%emt 0:01:38]} 10. Nb1 {[%emt 0:01:54]} O-O {[%emt 0:00:48]} 11. Nbd2 {[%emt 0:01:40]} Bb7 {[%emt 0:06:53]} 12. Rc1 {[%emt 0:00:19]} Qe7 {[%emt 0:00:31]} 13. Bg5 {[%emt 0:06:44]} h6 {[%emt 0:02:36]} 14. Bh4 {[%emt 0:00:18]} Rfd8 {[%emt 0:00:01]} 15. c3 {[%emt 0:01:57]} bxc3 {[%emt 0:00:32]} 16. bxc3 {[%emt 0:06:31]} Na5 {[%emt 0:00:45]} 17. Qc2 {[%emt 0:05:43]} Rac8 {[%emt 0:01:49]} 18. Rfd1 {[%emt 0:00:48]} Bb4 {[%emt 0:00:56]} 19. c4 {[%emt 0:02:09]} dxc4 {[%emt 0:01:43]} 20. Nxc4 {[%emt 0:03:06]} Bd5 {[%emt 0:02:56]} 21. Bxf6 {[%emt 0:09:25]} gxf6 {[%emt 0:05:04]} 22. Rd4 {[%emt 0:02:13]} f5 {[%emt 0:00:40]} 23. Rcd1 {[%emt 0:00:58]} Nxc4 {[%emt 0:00:31]} 24. Bxc4 {[%emt 0:05:55]} Rxc4 {[%emt 0:01:33]} 25. Rxc4 {[%emt 0:01:41]} Bxc4 {[%emt 0:07:36]} 26. Rxd8+ {[%emt 0:12:18]} Qxd8 {[%emt 0:05:04]} 27. Qxc4 {[%emt 0:00:16]} Qd1+ {[%emt 0:00:10]} 28. Qf1 {[%emt 0:00:13]} Qxa4 {[%emt 0:00:03]} 29. g3 {[%emt 0:00:03]} Bc3 {[%emt 0:00:00]} 30. Qd3 {[%emt 0:00:00]} Bf6 {[%emt 0:00:00]} 31. Kg2 {[%emt 0:00:15]} Kg7 {[%emt 0:00:08]} 32. Nd2 {[%emt 0:00:13]} Qc6+ {[%emt 0:00:46]} 33. e4 {[%emt 0:00:30]} a5 {[%emt 0:00:07]} 34. Kh3 {[%emt 0:02:46]} a4 {[%emt 0:01:03]} 35. exf5 {[%emt 0:02:00]} Qd5 {[%emt 0:01:53]} 36. Qe2 {[%emt 0:02:59]} Qxf5+ {[%emt 0:01:02]} 37. Kg2 {[%emt 0:02:09]} Qd5+ {[%emt 0:01:21]} 38. f3 {[%emt 0:00:33]} Qa2 {[%emt 0:00:18]} 39. Qd3 {[%emt 0:03:47]} a3 {[%emt 0:01:17]} 40. Kh3 {[%emt 0:00:32]} Qd5 {[%emt 0:01:44]} 0-1

[Event "Eurasia Open Cup 2019"]
[Site "Ekaterinburg"]
[Date "2019.08.01"]
[Round "2.12"]
[White "Afanasiev, Nikita"]
[Black "Schepetkova, Margarita"]
[Result "1-0"]
[ECO "B12"]
[WhiteElo "2514"]
[BlackElo "2241"]
[Annotator "ChessBase"]
[PlyCount "77"]
[EventDate "2019.07.31"]
[EventType "swiss"]
[EventCountry "RUS"]
[SourceTitle "playchess.com"]
[Source "ChessBase"]
[SourceQuality "1"]
[TimeControl "5400+30"]

1. e4 {[%emt 0:00:00]} c6 {[%emt 0:00:00]} 2. d4 {[%emt 0:00:16]} d5 {[%emt 0:00:00]} 3. e5 {[%emt 0:00:06]} Bf5 {[%emt 0:00:00]} 4. Nf3 {[%emt 0:00:00]} e6 {[%emt 0:00:00]} 5. Be2 {[%emt 0:00:00]} Ne7 {[%emt 0:00:00]} 6. O-O {[%emt 0:00:49]} c5 {[%emt 0:00:40]} 7. Be3 {[%emt 0:04:18]} Bg4 {[%emt 0:10:30]} 8. Nbd2 {[%emt 0:25:16]} Nbc6 {[%emt 0:11:46]} 9. c3 {[%emt 0:02:54]} Nf5 {[%emt 0:02:12]} 10. Nb3 {[%emt 0:06:22]} Bxf3 {[%emt 0:07:35]} 11. Bxf3 {[%emt 0:00:56]} c4 {[%emt 0:00:16]} 12. Nd2 {[%emt 0:05:22]} f6 {[%emt 0:04:58]} 13. exf6 {[%emt 0:05:38]} Qxf6 {[%emt 0:02:10]} 14. Re1 {[%emt 0:01:32]} O-O-O {[%emt 0:06:26]} 15. Bg4 {[%emt 0:01:02]} h5 {[%emt 0:00:31]} 16. Bxf5 {[%emt 0:04:46]} Qxf5 {[%emt 0:05:00]} 17. Nf3 {[%emt 0:02:05]} Bd6 {[%emt 0:01:10]} 18. b3 {[%emt 0:00:31]} e5 {[%emt 0:05:03]} 19. bxc4 {[%emt 0:06:16]} dxc4 {[%emt 0:05:58]} 20. Qa4 {[%emt 0:00:54]} h4 {[%emt 0:07:37]} 21. h3 {[%emt 0:03:08]} e4 {[%emt 0:05:30]} 22. Nd2 {[%emt 0:01:36]} g5 {[%emt 0:01:03]} 23. Qd1 {[%emt 0:10:07]} g4 {[%emt 0:03:39]} 24. Qxg4 {[%emt 0:00:39]} Qxg4 {[%emt 0:01:08]} 25. hxg4 {[%emt 0:01:06]} Rhg8 {[%emt 0:04:20]} 26. g5 {[%emt 0:00:19]} Ne7 {[%emt 0:00:58]} 27. Nxe4 {[%emt 0:00:02]} Nd5 {[%emt 0:00:28]} 28. Rab1 {[%emt 0:00:25]} a6 {[%emt 0:00:39]} 29. Nxd6+ {[%emt 0:04:37]} Rxd6 {[%emt 0:00:00]} 30. Bd2 {[%emt 0:01:17]} b5 {[%emt 0:00:52]} 31. a4 {[%emt 0:00:58]} bxa4 {[%emt 0:00:04]} 32. Ra1 {[%emt 0:00:34]} Nb6 {[%emt 0:01:03]} 33. Re5 {[%emt 0:03:35]} Kd7 {[%emt 0:00:03]} 34. Ra5 {[%emt 0:00:09]} Ke6 {[%emt 0:00:18]} 35. Bf4 {[%emt 0:00:18]} Rc6 {[%emt 0:00:15]} 36. d5+ {[%emt 0:00:55]} Nxd5 {[%emt 0:00:53]} 37. Re1+ {[%emt 0:00:48]} Kf5 {[%emt 0:00:30]} 38. Rxd5+ {[%emt 0:02:37]} Kxf4 {[%emt 0:00:04]} 39. f3 {[%emt 0:00:05]} 1-0

[Event "Eurasia Open Cup 2019"]
[Site "Ekaterinburg"]
[Date "2019.08.01"]
[Round "2.13"]
[White "Rudometov, Maxim"]
[Black "Bocharov, Dmitry"]
[Result "0-1"]
[ECO "E62"]
[WhiteElo "2233"]
[BlackElo "2506"]
[Annotator "ChessBase"]
[PlyCount "98"]
[EventDate "2019.07.31"]
[EventType "swiss"]
[EventCountry "RUS"]
[SourceTitle "playchess.com"]
[Source "ChessBase"]
[SourceQuality "1"]
[TimeControl "5400+30"]

1. d4 {[%emt 0:01:27]} Nf6 {[%emt 0:03:18]} 2. c4 {[%emt 0:01:00]} g6 {[%emt 0:00:21]} 3. g3 {[%emt 0:03:06]} Bg7 {[%emt 0:00:42]} 4. Bg2 {[%emt 0:00:19]} O-O {[%emt 0:00:00]} 5. Nf3 {[%emt 0:01:52]} d6 {[%emt 0:00:25]} 6. O-O {[%emt 0:00:30]} Nc6 {[%emt 0:00:00]} 7. Nc3 {[%emt 0:03:23]} Bf5 {[%emt 0:00:47]} 8. d5 {[%emt 0:04:56]} Na5 {[%emt 0:00:33]} 9. Nd4 {[%emt 0:01:00]} Bd7 {[%emt 0:00:51]} 10. b3 {[%emt 0:05:32]} c5 {[%emt 0:00:33]} 11. dxc6 {[%emt 0:02:22]} bxc6 {[%emt 0:00:22]} 12. Bb2 {[%emt 0:01:53]} Rb8 {[%emt 0:00:31]} 13. Rb1 {[%emt 0:00:51]} c5 {[%emt 0:10:04]} 14. Nc2 {[%emt 0:01:17]} Nc6 {[%emt 0:02:11]} 15. Qd2 {[%emt 0:16:29]} Qc8 {[%emt 0:03:38]} 16. Nd5 {[%emt 0:04:53]} Nxd5 {[%emt 0:00:17]} 17. Bxg7 {[%emt 0:00:44]} Kxg7 {[%emt 0:00:08]} 18. cxd5 {[%emt 0:00:00]} Nb4 {[%emt 0:03:29]} 19. Nxb4 {[%emt 0:13:34]} Rxb4 {[%emt 0:00:57]} 20. a3 {[%emt 0:05:39]} Rb6 {[%emt 0:00:00]} 21. b4 {[%emt 0:00:43]} Qb7 {[%emt 0:00:21]} 22. Be4 {[%emt 0:00:20]} Rc8 {[%emt 0:01:57]} 23. bxc5 {[%emt 0:01:01]} Rxc5 {[%emt 0:05:40]} 24. Rxb6 {[%emt 0:05:49]} axb6 {[%emt 0:01:02]} 25. Rb1 {[%emt 0:00:01]} Kg8 {[%emt 0:00:10]} 26. h4 {[%emt 0:00:07]} b5 {[%emt 0:08:24]} 27. h5 {[%emt 0:12:48]} Rc4 {[%emt 0:09:21]} 28. Bf3 {[%emt 0:02:51]} Bf5 {[%emt 0:20:38]} 29. Rb4 {[%emt 0:01:06]} Qb6 {[%emt 0:04:58]} 30. h6 {[%emt 0:01:29]} f6 {[%emt 0:05:15]} 31. Kg2 {[%emt 0:04:18]} g5 {[%emt 0:07:32]} 32. Qb2 {[%emt 0:01:40]} Qc7 {[%emt 0:01:06]} 33. Rxc4 {[%emt 0:00:56]} bxc4 {[%emt 0:02:48]} 34. e4 {[%emt 0:01:06]} c3 {[%emt 0:03:47]} 35. Qc2 {[%emt 0:01:47]} Bd7 {[%emt 0:00:20]} 36. Be2 {[%emt 0:00:00]} Qc5 {[%emt 0:00:38]} 37. a4 {[%emt 0:00:00]} Qb4 {[%emt 0:00:46]} 38. Bb5 {[%emt 0:00:34]} Qb2 {[%emt 0:02:22]} 39. Bd3 {[%emt 0:00:04]} Kf8 {[%emt 0:00:34]} 40. a5 {[%emt 0:00:04]} Bb5 {[%emt 0:02:25]} 41. e5 {[%emt 0:01:00]} dxe5 {[%emt 0:00:33]} 42. Bxh7 {[%emt 0:00:00]} Bc4 {[%emt 0:00:40]} 43. d6 {[%emt 0:00:28]} Bd5+ {[%emt 0:00:05]} 44. Kh3 {[%emt 0:00:13]} exd6 {[%emt 0:00:15]} 45. Qd3 {[%emt 0:01:19]} Qd2 {[%emt 0:00:10]} 46. Kg4 {[%emt 0:00:15]} Be6+ {[%emt 0:00:19]} 47. Kf3 {[%emt 0:01:13]} g4+ {[%emt 0:01:07]} 48. Kg2 {[%emt 0:01:23]} Bd5+ {[%emt 0:00:00]} 49. Kg1 {[%emt 0:00:25]} Qc1+ {[%emt 0:00:47]} 0-1

[Event "Eurasia Open Cup 2019"]
[Site "Ekaterinburg"]
[Date "2019.08.01"]
[Round "2.14"]
[White "Burmakin, Vladimir"]
[Black "Lysenko, Margarita"]
[Result "1-0"]
[ECO "A45"]
[WhiteElo "2506"]
[BlackElo "2224"]
[Annotator "ChessBase"]
[PlyCount "131"]
[EventDate "2019.07.31"]
[EventType "swiss"]
[EventCountry "RUS"]
[SourceTitle "playchess.com"]
[Source "ChessBase"]
[SourceQuality "1"]
[TimeControl "5400+30"]

1. d4 {[%emt 0:00:00]} Nf6 {[%emt 0:00:00]} 2. g3 {[%emt 0:00:00]} e6 {[%emt 0:02:19]} 3. Bg2 {[%emt 0:01:30]} c5 {[%emt 0:01:57]} 4. dxc5 {[%emt 0:01:39]} Bxc5 {[%emt 0:00:20]} 5. Nh3 {[%emt 0:00:06]} O-O {[%emt 0:03:13]} 6. O-O {[%emt 0:02:04]} d5 {[%emt 0:04:43]} 7. Nf4 {[%emt 0:00:05]} Nc6 {[%emt 0:04:01]} 8. c3 {[%emt 0:00:36]} Qe7 {[%emt 0:09:55]} 9. Nd2 {[%emt 0:14:43]} Rd8 {[%emt 0:01:25]} 10. Nd3 {[%emt 0:04:04]} Bb6 {[%emt 0:03:43]} 11. Ne1 {[%emt 0:15:11]} e5 {[%emt 0:03:18]} 12. Nc2 {[%emt 0:00:00]} Bf5 {[%emt 0:06:44]} 13. Nf3 {[%emt 0:00:17]} d4 {[%emt 0:10:45]} 14. cxd4 {[%emt 0:01:13]} exd4 {[%emt 0:02:11]} 15. Nce1 {[%emt 0:03:09]} Re8 {[%emt 0:04:45]} 16. Nh4 {[%emt 0:00:00]} Bg4 {[%emt 0:01:07]} 17. Bf3 {[%emt 0:00:03]} Bxf3 {[%emt 0:11:18]} 18. exf3 {[%emt 0:00:02]} Nd5 {[%emt 0:00:31]} 19. Qb3 {[%emt 0:00:30]} Rad8 {[%emt 0:04:49]} 20. Nd3 {[%emt 0:13:42]} Na5 {[%emt 0:03:22]} 21. Qa4 {[%emt 0:00:04]} Qd7 {[%emt 0:02:08]} 22. Qxd7 {[%emt 0:01:06]} Rxd7 {[%emt 0:02:41]} 23. Bd2 {[%emt 0:01:28]} Nc4 {[%emt 0:00:05]} 24. Rfe1 {[%emt 0:07:40]} Rxe1+ {[%emt 0:00:54]} 25. Bxe1 {[%emt 0:00:25]} f6 {[%emt 0:04:54]} 26. f4 {[%emt 0:01:04]} Kf7 {[%emt 0:01:10]} 27. Nf3 {[%emt 0:00:15]} Nd6 {[%emt 0:02:21]} 28. Rd1 {[%emt 0:00:17]} Ne4 {[%emt 0:02:37]} 29. Nd2 {[%emt 0:03:32]} Nxd2 {[%emt 0:00:59]} 30. Bxd2 {[%emt 0:05:17]} Rc7 {[%emt 0:01:34]} 31. Kg2 {[%emt 0:00:16]} Rc2 {[%emt 0:01:15]} 32. Kf3 {[%emt 0:04:20]} f5 {[%emt 0:00:51]} 33. Be1 {[%emt 0:00:04]} Nf6 {[%emt 0:00:53]} 34. a4 {[%emt 0:02:38]} a6 {[%emt 0:02:24]} 35. Ra1 {[%emt 0:01:43]} Ne4 {[%emt 0:01:01]} 36. a5 {[%emt 0:01:29]} Ba7 {[%emt 0:00:40]} 37. Ra4 {[%emt 0:02:36]} Ke6 {[%emt 0:00:30]} 38. g4 {[%emt 0:00:47]} g6 {[%emt 0:01:02]} 39. h3 {[%emt 0:01:49]} Nc5 {[%emt 0:00:00]} 40. Rxd4 {[%emt 0:00:10]} Nxd3 {[%emt 0:00:31]} 41. Rxd3 {[%emt 0:00:37]} Rxb2 {[%emt 0:00:49]} 42. Rd8 {[%emt 0:00:07]} Rc2 {[%emt 0:00:00]} 43. Re8+ {[%emt 0:01:30]} Kf7 {[%emt 0:01:09]} 44. Ra8 {[%emt 0:01:15]} Bd4 {[%emt 0:00:18]} 45. Rd8 {[%emt 0:01:04]} Bf6 {[%emt 0:00:44]} 46. Rd7+ {[%emt 0:00:07]} Ke8 {[%emt 0:00:30]} 47. Rxb7 {[%emt 0:00:00]} fxg4+ {[%emt 0:00:28]} 48. hxg4 {[%emt 0:00:23]} h5 {[%emt 0:00:02]} 49. Rb6 {[%emt 0:00:00]} hxg4+ {[%emt 0:00:07]} 50. Kxg4 {[%emt 0:03:41]} Bd4 {[%emt 0:00:20]} 51. Rxg6 {[%emt 0:00:05]} Re2 {[%emt 0:00:14]} 52. Rd6 {[%emt 0:01:18]} Bc5 {[%emt 0:00:32]} 53. Rd5 {[%emt 0:00:44]} Rxe1 {[%emt 0:01:31]} 54. Rxc5 {[%emt 0:00:14]} Ra1 {[%emt 0:00:34]} 55. Kg5 {[%emt 0:00:35]} Ke7 {[%emt 0:00:11]} 56. Re5+ {[%emt 0:01:43]} Kf7 {[%emt 0:00:00]} 57. Rc5 {[%emt 0:00:47]} Ke7 {[%emt 0:00:27]} 58. f5 {[%emt 0:00:32]} Rg1+ {[%emt 0:00:00]} 59. Kf4 {[%emt 0:02:19]} Ra1 {[%emt 0:00:37]} 60. Ke5 {[%emt 0:00:10]} Re1+ {[%emt 0:00:07]} 61. Kf4 {[%emt 0:00:15]} Ra1 {[%emt 0:00:16]} 62. f6+ {[%emt 0:00:52]} Kf7 {[%emt 0:00:10]} 63. Kf5 {[%emt 0:00:09]} Rf1 {[%emt 0:00:59]} 64. Rc7+ {[%emt 0:00:08]} Kf8 {[%emt 0:00:24]} 65. f4 {[%emt 0:00:15]} Ra1 {[%emt 0:00:07]} 66. Ra7 {[%emt 0:00:09]} 1-0

[Event "Eurasia Open Cup 2019"]
[Site "Ekaterinburg"]
[Date "2019.08.01"]
[Round "2.15"]
[White "Pranizin, Gennady"]
[Black "Gleizerov, Evgeny"]
[Result "0-1"]
[ECO "C01"]
[WhiteElo "2232"]
[BlackElo "2498"]
[Annotator "ChessBase"]
[PlyCount "120"]
[EventDate "2019.07.31"]
[EventType "swiss"]
[EventCountry "RUS"]
[SourceTitle "playchess.com"]
[Source "ChessBase"]
[SourceQuality "1"]
[TimeControl "5400+30"]

1. e4 {[%emt 0:00:00]} e6 {[%emt 0:00:55]} 2. d4 {[%emt 0:00:00]} d5 {[%emt 0:01:11]} 3. Bd3 {[%emt 0:00:00]} c5 {[%emt 0:00:06]} 4. exd5 {[%emt 0:00:00]} exd5 {[%emt 0:00:07]} 5. Qe2+ {[%emt 0:07:24]} Be7 {[%emt 0:01:19]} 6. dxc5 {[%emt 0:07:46]} Nf6 {[%emt 0:00:17]} 7. Nf3 {[%emt 0:01:13]} O-O {[%emt 0:00:21]} 8. O-O {[%emt 0:01:50]} Re8 {[%emt 0:00:45]} 9. Bg5 {[%emt 0:04:44]} h6 {[%emt 0:00:15]} 10. Bh4 {[%emt 0:02:13]} g5 {[%emt 0:00:34]} 11. Nxg5 {[%emt 0:09:33]} hxg5 {[%emt 0:00:51]} 12. Bxg5 {[%emt 0:00:03]} Nbd7 {[%emt 0:09:03]} 13. Nc3 {[%emt 0:06:30]} Nxc5 {[%emt 0:01:45]} 14. Bb5 {[%emt 0:11:30]} Bd7 {[%emt 0:04:49]} 15. Rad1 {[%emt 0:07:55]} Bxb5 {[%emt 0:19:58]} 16. Qxb5 {[%emt 0:01:11]} a6 {[%emt 0:00:18]} 17. Qe2 {[%emt 0:00:32]} d4 {[%emt 0:00:44]} 18. Qf3 {[%emt 0:01:30]} Ne6 {[%emt 0:02:35]} 19. Bh4 {[%emt 0:01:30]} Nh7 {[%emt 0:00:31]} 20. Bxe7 {[%emt 0:02:32]} Qxe7 {[%emt 0:03:07]} 21. Ne4 {[%emt 0:00:59]} Kh8 {[%emt 0:07:15]} 22. Ng3 {[%emt 0:09:02]} Rad8 {[%emt 0:06:47]} 23. h3 {[%emt 0:00:53]} Rd7 {[%emt 0:02:18]} 24. c3 {[%emt 0:03:26]} Qf6 {[%emt 0:00:59]} 25. Qe4 {[%emt 0:01:02]} Red8 {[%emt 0:00:10]} 26. cxd4 {[%emt 0:02:42]} Nxd4 {[%emt 0:02:39]} 27. Kh1 {[%emt 0:04:10]} Ne6 {[%emt 0:04:39]} 28. Rxd7 {[%emt 0:01:24]} Rxd7 {[%emt 0:00:38]} 29. f4 {[%emt 0:04:23]} Qxb2 {[%emt 0:02:40]} 30. f5 {[%emt 0:01:19]} Nef8 {[%emt 0:00:01]} 31. Qg4 {[%emt 0:01:11]} Qg7 {[%emt 0:02:15]} 32. Qf3 {[%emt 0:01:31]} Nf6 {[%emt 0:00:37]} 33. Rb1 {[%emt 0:03:19]} Qg5 {[%emt 0:01:11]} 34. Qc3 {[%emt 0:01:14]} Kg8 {[%emt 0:00:30]} 35. Kh2 {[%emt 0:00:22]} Nd5 {[%emt 0:03:34]} 36. Qc8 {[%emt 0:01:08]} Qf4 {[%emt 0:00:07]} 37. Rxb7 {[%emt 0:00:12]} Rxb7 {[%emt 0:01:20]} 38. Qxb7 {[%emt 0:01:44]} Ne3 {[%emt 0:02:48]} 39. Qxa6 {[%emt 0:00:18]} Nxf5 {[%emt 0:06:02]} 40. Qd3 {[%emt 0:00:04]} Ne3 {[%emt 0:01:11]} 41. Qe2 {[%emt 0:00:22]} Ng6 {[%emt 0:00:16]} 42. Qf3 {[%emt 0:00:15]} Qe5 {[%emt 0:00:36]} 43. Kg1 {[%emt 0:00:23]} Nh4 {[%emt 0:02:43]} 44. Qf2 {[%emt 0:00:17]} Nd1 {[%emt 0:00:44]} 45. Qe2 {[%emt 0:00:37]} Qxg3 {[%emt 0:01:30]} 46. Qg4+ {[%emt 0:00:31]} Qxg4 {[%emt 0:02:22]} 47. hxg4 {[%emt 0:01:58]} Ng6 {[%emt 0:00:13]} 48. a4 {[%emt 0:00:12]} Ne5 {[%emt 0:00:00]} 49. a5 {[%emt 0:00:03]} Nc6 {[%emt 0:00:52]} 50. a6 {[%emt 0:00:13]} Ne3 {[%emt 0:00:00]} 51. g5 {[%emt 0:00:19]} Nd5 {[%emt 0:00:00]} 52. Kh2 {[%emt 0:00:32]} Nc7 {[%emt 0:00:00]} 53. Kh3 {[%emt 0:00:07]} Kg7 {[%emt 0:00:06]} 54. Kg4 {[%emt 0:00:00]} Kg6 {[%emt 0:00:05]} 55. Kf4 {[%emt 0:00:00]} Nxa6 {[%emt 0:00:06]} 56. Kg4 {[%emt 0:00:04]} Nc5 {[%emt 0:00:35]} 57. Kh4 {[%emt 0:00:09]} Ne6 {[%emt 0:00:05]} 58. g3 {[%emt 0:00:34]} Nxg5 {[%emt 0:00:00]} 59. Kg4 {[%emt 0:00:00]} Ne4 {[%emt 0:00:00]} 60. Kf4 {[%emt 0:00:00]} Nxg3 {[%emt 0:00:00]} 0-1

[Event "Eurasia Open Cup 2019"]
[Site "Ekaterinburg"]
[Date "2019.08.01"]
[Round "2.16"]
[White "Larichev, Dmitry"]
[Black "Drygalov, Sergey"]
[Result "0-1"]
[ECO "B50"]
[WhiteElo "2225"]
[BlackElo "2492"]
[Annotator "ChessBase"]
[PlyCount "84"]
[EventDate "2019.07.31"]
[EventType "swiss"]
[EventCountry "RUS"]
[SourceTitle "playchess.com"]
[Source "ChessBase"]
[SourceQuality "1"]
[TimeControl "5400+30"]

1. e4 {[%emt 0:00:00]} c5 {[%emt 0:00:00]} 2. Nf3 {[%emt 0:00:00]} d6 {[%emt 0:00:00]} 3. c3 {[%emt 0:00:00]} Nf6 {[%emt 0:00:00]} 4. Bd3 {[%emt 0:00:50]} Nc6 {[%emt 0:00:00]} 5. Bc2 {[%emt 0:00:06]} Bg4 {[%emt 0:03:34]} 6. h3 {[%emt 0:00:40]} Bh5 {[%emt 0:00:49]} 7. O-O {[%emt 0:02:09]} e6 {[%emt 0:05:42]} 8. d3 {[%emt 0:04:15]} Be7 {[%emt 0:02:02]} 9. Be3 {[%emt 0:02:44]} O-O {[%emt 0:00:35]} 10. d4 {[%emt 0:04:22]} cxd4 {[%emt 0:02:02]} 11. cxd4 {[%emt 0:00:29]} Nb4 {[%emt 0:00:55]} 12. Nbd2 {[%emt 0:01:42]} Nxc2 {[%emt 0:01:38]} 13. Qxc2 {[%emt 0:00:01]} Bg6 {[%emt 0:02:17]} 14. Qb3 {[%emt 0:18:19]} Nxe4 {[%emt 0:01:35]} 15. Qxb7 {[%emt 0:00:34]} Nxd2 {[%emt 0:01:40]} 16. Bxd2 {[%emt 0:00:06]} Bf6 {[%emt 0:00:10]} 17. Rac1 {[%emt 0:01:17]} a5 {[%emt 0:02:10]} 18. b3 {[%emt 0:01:33]} a4 {[%emt 0:05:28]} 19. b4 {[%emt 0:10:01]} Bd3 {[%emt 0:02:19]} 20. Rfe1 {[%emt 0:01:20]} Ba6 {[%emt 0:01:41]} 21. Qe4 {[%emt 0:00:13]} Qe7 {[%emt 0:07:53]} 22. Qg4 {[%emt 0:04:58]} Bb7 {[%emt 0:04:20]} 23. Ng5 {[%emt 0:03:07]} h6 {[%emt 0:02:11]} 24. h4 {[%emt 0:14:00]} a3 {[%emt 0:15:35]} 25. Rc3 {[%emt 0:08:01]} Bd5 {[%emt 0:09:48]} 26. Rg3 {[%emt 0:03:21]} Bxa2 {[%emt 0:02:49]} 27. Ra1 {[%emt 0:03:06]} Bd5 {[%emt 0:03:29]} 28. Rgxa3 {[%emt 0:00:47]} Rxa3 {[%emt 0:00:31]} 29. Rxa3 {[%emt 0:00:31]} Qb7 {[%emt 0:01:39]} 30. Nh3 {[%emt 0:00:01]} Be4 {[%emt 0:00:48]} 31. Nf4 {[%emt 0:00:31]} Bf5 {[%emt 0:00:06]} 32. Qg3 {[%emt 0:00:56]} Bxd4 {[%emt 0:00:32]} 33. Nh5 {[%emt 0:04:12]} Qe4 {[%emt 0:02:25]} 34. Bc3 {[%emt 0:06:06]} Bg4 {[%emt 0:00:33]} 35. Nf4 {[%emt 0:00:34]} Bxc3 {[%emt 0:01:15]} 36. Rxc3 {[%emt 0:00:17]} Qxb4 {[%emt 0:02:40]} 37. Rc1 {[%emt 0:03:01]} Bf5 {[%emt 0:06:46]} 38. Kh2 {[%emt 0:02:49]} d5 {[%emt 0:00:18]} 39. Nh5 {[%emt 0:00:06]} Qg4 {[%emt 0:01:04]} 40. Nf4 {[%emt 0:00:13]} Qxg3+ {[%emt 0:00:23]} 41. Kxg3 {[%emt 0:00:37]} Rd8 {[%emt 0:00:12]} 42. Kf3 {[%emt 0:00:23]} e5 {[%emt 0:00:43]} 0-1

[Event "Eurasia Open Cup 2019"]
[Site "Ekaterinburg"]
[Date "2019.08.01"]
[Round "2.17"]
[White "Kostenko, Petr"]
[Black "Tugarin, Anton"]
[Result "1-0"]
[ECO "C01"]
[WhiteElo "2471"]
[BlackElo "2217"]
[Annotator "ChessBase"]
[PlyCount "57"]
[EventDate "2019.07.31"]
[EventType "swiss"]
[EventCountry "RUS"]
[SourceTitle "playchess.com"]
[Source "ChessBase"]
[SourceQuality "1"]
[TimeControl "5400+30"]

1. e4 {[%emt 0:00:00]} e6 {[%emt 0:00:00]} 2. d4 {[%emt 0:00:00]} d5 {[%emt 0:00:00]} 3. Nc3 {[%emt 0:00:00]} Bb4 {[%emt 0:00:00]} 4. exd5 {[%emt 0:00:41]} exd5 {[%emt 0:00:00]} 5. Bd3 {[%emt 0:00:00]} Nf6 {[%emt 0:00:53]} 6. a3 {[%emt 0:00:00]} Be7 {[%emt 0:01:26]} 7. Nf3 {[%emt 0:00:00]} Bg4 {[%emt 0:02:33]} 8. h3 {[%emt 0:03:14]} Bh5 {[%emt 0:00:26]} 9. g4 {[%emt 0:02:41]} Bg6 {[%emt 0:00:09]} 10. Ne5 {[%emt 0:00:00]} Bxd3 {[%emt 0:04:33]} 11. Qxd3 {[%emt 0:00:20]} c6 {[%emt 0:02:17]} 12. g5 {[%emt 0:12:08]} Nfd7 {[%emt 0:02:10]} 13. f4 {[%emt 0:00:11]} Nxe5 {[%emt 0:03:41]} 14. dxe5 {[%emt 0:00:11]} Nd7 {[%emt 0:00:34]} 15. Be3 {[%emt 0:04:30]} Nc5 {[%emt 0:02:54]} 16. Qd2 {[%emt 0:01:13]} Qd7 {[%emt 0:01:40]} 17. b4 {[%emt 0:00:34]} Ne6 {[%emt 0:07:10]} 18. f5 {[%emt 0:00:15]} Nc7 {[%emt 0:00:52]} 19. O-O {[%emt 0:06:42]} O-O {[%emt 0:10:13]} 20. Ne4 {[%emt 0:01:54]} Rfd8 {[%emt 0:15:05]} 21. Nf6+ {[%emt 0:25:37]} Bxf6 {[%emt 0:00:40]} 22. gxf6 {[%emt 0:00:33]} d4 {[%emt 0:05:55]} 23. Bg5 {[%emt 0:01:38]} Re8 {[%emt 0:10:25]} 24. Rae1 {[%emt 0:08:12]} Qd5 {[%emt 0:03:33]} 25. Qf4 {[%emt 0:00:37]} c5 {[%emt 0:01:20]} 26. Bh4 {[%emt 0:00:55]} Rec8 {[%emt 0:03:07]} 27. e6 {[%emt 0:00:51]} fxe6 {[%emt 0:01:26]} 28. fxe6 {[%emt 0:02:48]} Nxe6 {[%emt 0:00:55]} 29. Qg4 {[%emt 0:00:26]} 1-0